{"text_format":"3","workbook":"xlsx","n_sheets":2,"sheets":["Instructions","Currency"],"not_rendered":{"macros":1},"read":"whole","date_system":"1900"}

{"sheet":"Instructions","index":0,"n_rows":32,"n_cols":2,"rows_kept":32,"merged":[[2,1,10,7],[13,1,16,7],[18,1,23,7],[25,1,28,7],[31,1,31,7]]}
[]
[]
[null,"This is a very user friendly currency converter, just enter the amount of money that you want to convert in the 'amount to convert' column and in the corresponding row for the type of currency you have and hit enter. It will automatically convert to all types listed. The conversions are based on rules that are listed in the Player's Handbook. I have taken the liberty of adding steel pieces for those that play the Dragon Lance series. The conversions for this are based somewhat on the sourcebook 'More Leaves from The Inn of the Last Home' as well as some modifications of my own."]
{"$rows_empty":10}
[null,"For those of you that want to make adjustments to the spreadsheet, the protection password is: currency. If you are not that familiar with Excel and still want to play around with the formulas, I suggest you open the spreadsheet and save it under a new name before making changes."]
[]
[]
[]
[]
[null,"This program does contain macros. To enable macros on Excel 2007, click on the \"options\" button located above the formula bar, then click on \"enable this content\", then click \"ok\". To enable macros on earlier versions of Excel, go to Tools--> Macro --> Security and click on the medium setting, this will prompt you to either enable or disable macros each time that you open a file containing macros."]
[]
[]
[]
[]
[]
[]
[null,"Feel free to contact me at LordTrevocGameTools@hotmail.com with any questions or comments. If you don't already have my potion generator, wizard spell book generator, thief xp sheet, or priest xp sheet, send me an email and I can email them to you. Enjoy."]
[]
[]
[]
[]
[]
[null,"© Lord Trevoc Game Tools"]

{"sheet":"Currency","index":1,"n_rows":21,"n_cols":8,"rows_kept":21,"merged":[[1,1,1,7],[7,0,8,0],[12,1,12,7]]}
[]
[null,"Currency Conversion"]
[null,null,"Copper","Silver","Electrum","Gold","Platinum","Steel"]
[null,"Copper",1,0.1,0.02,0.01,2E-3,1E-3]
[null,"Silver",10,1,0.2,0.1,0.02,0.01]
[null,"Electrum",50,5,1,0.5,0.1,0.05]
[null,"Gold",100,10,2,1,0.2,0.1]
["Click the '$' to clear your entries.","Steel",1000,100,20,10,2,1]
[null,"Platinum",500,50,10,5,1,0.5]
[]
[]
[]
["Amount to"]
["Convert",null,"Copper","Silver","Electrum","Gold","Platinum","Steel"]
[null,"Copper",{"$f":"(A15*C4)","v":{"v":0,"d":"0.00"}},{"$f":"(A15*D4)","v":{"v":0,"d":"0.00"}},{"$f":"(A15*E4)","v":{"v":0,"d":"0.00"}},{"$f":"(A15*F4)","v":{"v":0,"d":"0.00"}},{"$f":"(A15*G4)","v":{"v":0,"d":"0.00"}},{"$f":"(A15*H4)","v":{"v":0,"d":"0.00"}}]
[null,"Silver",{"v":0,"d":"0.00"},{"v":0,"d":"0.00"},{"v":0,"d":"0.00"},{"v":0,"d":"0.00"},{"v":0,"d":"0.00"},{"v":0,"d":"0.00"}]
[null,"Electrum",{"v":0,"d":"0.00"},{"v":0,"d":"0.00"},{"v":0,"d":"0.00"},{"v":0,"d":"0.00"},{"v":0,"d":"0.00"},{"v":0,"d":"0.00"}]
[null,"Gold",{"v":0,"d":"0.00"},{"v":0,"d":"0.00"},{"v":0,"d":"0.00"},{"v":0,"d":"0.00"},{"v":0,"d":"0.00"},{"v":0,"d":"0.00"}]
[null,"Steel",{"$f":"(A19*C8)","v":{"v":0,"d":"0.00"}},{"v":0,"d":"0.00"},{"v":0,"d":"0.00"},{"v":0,"d":"0.00"},{"v":0,"d":"0.00"},{"v":0,"d":"0.00"}]
[null,"Platinum",{"v":0,"d":"0.00"},{"v":0,"d":"0.00"},{"v":0,"d":"0.00"},{"v":0,"d":"0.00"},{"v":0,"d":"0.00"},{"v":0,"d":"0.00"}]
[null,"Total - ",{"$f":"SUM(C15:C20)","v":{"v":0,"d":"0.00"}},{"v":0,"d":"0.00"},{"v":0,"d":"0.00"},{"v":0,"d":"0.00"},{"v":0,"d":"0.00"},{"v":0,"d":"0.00"}]